[Event "Titled Tuesday Blitz August 09 Early 2022"]
[White "Can, Melih Kaan"]
[Black "Volkov, Maksim"]
[WhiteFideId "6317383"]
[BlackFideId "54123070"]
[WhiteElo "2049"]
[BlackElo "2155"]
[Result "0-1"]
[Round "05"]
[TimeControl "180+1"]
[Date "2022.08.09"]
[WhiteClock "0:00:01"]
[BlackClock "0:00:47"]

1. d4 {[%clk 0:03:00]}  d5 {[%clk 0:02:59]} 2. c4 {[%clk 0:03:00]}  e6 {[%clk 0:02:59]} 3. Nc3 {[%clk 0:03:00]}  c6 {[%clk 0:02:59]} 4. cxd5 {[%clk 0:02:45]}  exd5 {[%clk 0:02:59]} 5. Nf3 {[%clk 0:02:45]}  Bf5 {[%clk 0:02:59]} 6. Bf4 {[%clk 0:02:34]}  Nf6 {[%clk 0:02:58]} 7. e3 {[%clk 0:02:34]}  Nbd7 {[%clk 0:02:54]} 8. Be2 {[%clk 0:02:31]}  Be7 {[%clk 0:02:54]} 9. h3 {[%clk 0:02:31]}  O-O {[%clk 0:02:53]} 10. O-O {[%clk 0:02:30]}  Re8 {[%clk 0:02:52]} 11. a3 {[%clk 0:02:22]}  Nb6 {[%clk 0:02:50]} 12. Rc1 {[%clk 0:02:20]}  Nc8 {[%clk 0:02:48]} 13. Ne5 {[%clk 0:02:16]}  Bd6 {[%clk 0:02:42]} 14. b4 {[%clk 0:02:14]}  a6 {[%clk 0:02:41]} 15. Na4 {[%clk 0:02:13]}  Nd7 {[%clk 0:02:40]} 16. Nxd7 {[%clk 0:02:03]}  Qxd7 {[%clk 0:02:41]} 17. Nc5 {[%clk 0:02:01]}  Qe7 {[%clk 0:02:40]} 18. Bxd6 {[%clk 0:01:52]}  Nxd6 {[%clk 0:02:41]} 19. Qb3 {[%clk 0:01:44]}  g6 {[%clk 0:02:28]} 20. a4 {[%clk 0:01:43]}  Qg5 {[%clk 0:02:20]} 21. Kh1 {[%clk 0:01:43]}  Qh4 {[%clk 0:02:18]} 22. Qd1 {[%clk 0:01:21]}  Re7 {[%clk 0:02:10]} 23. Nd3 {[%clk 0:01:02]}  f6 {[%clk 0:01:51]} 24. Nf4 {[%clk 0:00:56]}  Rae8 {[%clk 0:01:50]} 25. Bg4 {[%clk 0:00:44]}  Bxg4 {[%clk 0:01:31]} 26. Qxg4 {[%clk 0:00:43]}  Qxg4 {[%clk 0:01:31]} 27. hxg4 {[%clk 0:00:44]}  Re4 {[%clk 0:01:30]} 28. Rc3 {[%clk 0:00:25]}  Kf7 {[%clk 0:01:28]} 29. Kg1 {[%clk 0:00:16]}  g5 {[%clk 0:01:27]} 30. Nd3 {[%clk 0:00:16]}  Rxg4 {[%clk 0:01:26]} 31. f3 {[%clk 0:00:14]}  Rh4 {[%clk 0:01:26]} 32. Nc5 {[%clk 0:00:12]}  Rh6 {[%clk 0:01:20]} 33. Kf2 {[%clk 0:00:11]}  Re7 {[%clk 0:01:18]} 34. Rb1 {[%clk 0:00:11]}  Rg6 {[%clk 0:01:16]} 35. g4 {[%clk 0:00:10]}  Rg8 {[%clk 0:01:16]} 36. Rh1 {[%clk 0:00:10]}  Kg7 {[%clk 0:01:15]} 37. Rh3 {[%clk 0:00:10]}  Rh8 {[%clk 0:01:15]} 38. Rc1 {[%clk 0:00:09]}  Nc4 {[%clk 0:01:14]} 39. Rc3 {[%clk 0:00:07]}  Rhe8 {[%clk 0:01:11]} 40. Rh1 {[%clk 0:00:02]}  Rxe3 {[%clk 0:01:05]} 41. Rxe3 {[%clk 0:00:01]}  Rxe3 {[%clk 0:01:06]} 42. Nxb7 {[%clk 0:00:01]}  Rb3 {[%clk 0:01:06]} 43. Nc5 {[%clk 0:00:01]}  Rxb4 {[%clk 0:01:06]} 44. Re1 {[%clk 0:00:02]}  Kg6 {[%clk 0:00:56]} 45. Re7 {[%clk 0:00:02]}  Na5 {[%clk 0:00:54]} 46. Nd7 {[%clk 0:00:01]}  f5 {[%clk 0:00:47]} 0-1


[Site "https://www.chess.com"]

[Event "Titled Tuesday Blitz August 09 Early 2022"]
[White "Chigaev, Maksim"]
[Black "Abdrlauf, Elham"]
[WhiteFideId "4108116"]
[BlackFideId "1533533"]
[WhiteElo "2487"]
[BlackElo "2430"]
[Result "0-1"]
[Round "05"]
[TimeControl "180+1"]
[Date "2022.08.09"]
[WhiteClock "0:00:03"]
[BlackClock "0:00:05"]

1. e4 {[%clk 0:03:00]}  c6 {[%clk 0:02:56]} 2. d4 {[%clk 0:02:50]}  d5 {[%clk 0:02:57]} 3. e5 {[%clk 0:02:51]}  c5 {[%clk 0:02:58]} 4. dxc5 {[%clk 0:02:49]}  e6 {[%clk 0:02:58]} 5. a3 {[%clk 0:02:49]}  Bxc5 {[%clk 0:02:58]} 6. Qg4 {[%clk 0:02:49]}  Ne7 {[%clk 0:02:55]} 7. Bd3 {[%clk 0:02:49]}  Qb6 {[%clk 0:02:40]} 8. Nf3 {[%clk 0:02:33]}  Bxf2+ {[%clk 0:02:40]} 9. Ke2 {[%clk 0:02:33]}  a5 {[%clk 0:02:41]} 10. Nc3 {[%clk 0:02:22]}  Bd7 {[%clk 0:02:41]} 11. Rf1 {[%clk 0:02:21]}  Bc5 {[%clk 0:02:40]} 12. Ng5 {[%clk 0:02:20]}  Nbc6 {[%clk 0:01:47]} 13. Nxf7 {[%clk 0:02:15]}  Nd4+ {[%clk 0:00:56]} 14. Kd1 {[%clk 0:02:06]}  Rf8 {[%clk 0:00:56]} 15. Nd6+ {[%clk 0:01:21]}  Bxd6 {[%clk 0:00:57]} 16. Rxf8+ {[%clk 0:01:22]}  Kxf8 {[%clk 0:00:57]} 17. exd6 {[%clk 0:01:23]}  Nef5 {[%clk 0:00:52]} 18. Qh3 {[%clk 0:00:57]}  Qxd6 {[%clk 0:00:14]} 19. g4 {[%clk 0:00:56]}  Ne7 {[%clk 0:00:08]} 20. Qxh7 {[%clk 0:00:52]}  Nf3 {[%clk 0:00:07]} 21. Qh3 {[%clk 0:00:20]}  Ne5 {[%clk 0:00:02]} 22. Bf4 {[%clk 0:00:19]}  N7c6 {[%clk 0:00:01]} 23. Qh8+ {[%clk 0:00:08]}  Kf7 {[%clk 0:00:02]} 24. Qxa8 {[%clk 0:00:09]}  Qc5 {[%clk 0:00:03]} 25. Ne2 {[%clk 0:00:03]}  Qf2 {[%clk 0:00:02]} 26. Bg3 {[%clk 0:00:03]}  Qf1+ {[%clk 0:00:02]} 27. Kd2 {[%clk 0:00:03]}  Qxa1 {[%clk 0:00:02]} 28. Bxe5 {[%clk 0:00:03]}  Nxe5 {[%clk 0:00:02]} 29. Qxb7 {[%clk 0:00:03]}  Qf1 {[%clk 0:00:02]} 30. Qc7 {[%clk 0:00:03]}  Qf6 {[%clk 0:00:02]} 31. g5 {[%clk 0:00:03]}  Qxg5+ {[%clk 0:00:02]} 32. Kd1 {[%clk 0:00:04]}  Qe3 {[%clk 0:00:03]} 33. Bb5 {[%clk 0:00:03]}  Kg6 {[%clk 0:00:02]} 34. Bxd7 {[%clk 0:00:04]}  Nf3 {[%clk 0:00:03]} 35. Be8+ {[%clk 0:00:04]}  Kh7 {[%clk 0:00:03]} 36. Qf4 {[%clk 0:00:03]}  Qf2 {[%clk 0:00:04]} 37. c3 {[%clk 0:00:02]}  Qe1+ {[%clk 0:00:04]} 38. Kc2 {[%clk 0:00:03]}  Qxe2+ {[%clk 0:00:05]} 39. Kb1 {[%clk 0:00:03]}  Nd2+ {[%clk 0:00:05]} 40. Ka1 {[%clk 0:00:03]}  Nc4 {[%clk 0:00:05]} 41. Qh4+ {[%clk 0:00:03]}  Kg8 {[%clk 0:00:05]} 0-1


[Site "https://www.chess.com"]

[Event "Titled Tuesday Blitz August 09 Early 2022"]
[White "De Souza, Cristiano Gomes"]
[Black "Butti, Enrique"]
[WhiteFideId "2151758"]
[BlackFideId "3700470"]
[WhiteElo "2068"]
[BlackElo "2080"]
[Result "0-1"]
[Round "05"]
[TimeControl "180+1"]
[Date "2022.08.09"]
[WhiteClock "0:00:11"]
[BlackClock "0:00:14"]

1. d4 {[%clk 0:03:00]}  c5 {[%clk 0:02:58]} 2. d5 {[%clk 0:03:00]}  e5 {[%clk 0:02:58]} 3. c4 {[%clk 0:03:00]}  d6 {[%clk 0:02:57]} 4. Nc3 {[%clk 0:03:01]}  Be7 {[%clk 0:02:57]} 5. e4 {[%clk 0:03:01]}  Bg5 {[%clk 0:02:55]} 6. Nf3 {[%clk 0:03:02]}  Bxc1 {[%clk 0:02:54]} 7. Rxc1 {[%clk 0:03:02]}  Ne7 {[%clk 0:02:53]} 8. Be2 {[%clk 0:03:03]}  O-O {[%clk 0:02:53]} 9. O-O {[%clk 0:03:04]}  Ng6 {[%clk 0:02:52]} 10. Ne1 {[%clk 0:03:04]}  Nf4 {[%clk 0:02:51]} 11. Bf3 {[%clk 0:03:04]}  Qg5 {[%clk 0:02:46]} 12. Nd3 {[%clk 0:02:58]}  Nd7 {[%clk 0:02:31]} 13. Nxf4 {[%clk 0:02:54]}  exf4 {[%clk 0:02:30]} 14. Bg4 {[%clk 0:02:29]}  Ne5 {[%clk 0:02:25]} 15. Bxc8 {[%clk 0:02:29]}  Rfxc8 {[%clk 0:02:20]} 16. Nb5 {[%clk 0:02:24]}  Qg6 {[%clk 0:02:14]} 17. f3 {[%clk 0:02:20]}  a6 {[%clk 0:02:13]} 18. Na3 {[%clk 0:02:18]}  Qf6 {[%clk 0:02:04]} 19. b3 {[%clk 0:02:16]}  b5 {[%clk 0:01:56]} 20. Qd2 {[%clk 0:02:09]}  b4 {[%clk 0:01:54]} 21. Nc2 {[%clk 0:02:05]}  a5 {[%clk 0:01:50]} 22. Ne1 {[%clk 0:02:05]}  a4 {[%clk 0:01:47]} 23. Nd3 {[%clk 0:02:05]}  axb3 {[%clk 0:01:38]} 24. axb3 {[%clk 0:01:59]}  Ra3 {[%clk 0:01:27]} 25. Rb1 {[%clk 0:01:32]}  g5 {[%clk 0:01:11]} 26. Nxe5 {[%clk 0:01:24]}  Qxe5 {[%clk 0:01:09]} 27. Rb2 {[%clk 0:01:20]}  Rca8 {[%clk 0:01:06]} 28. h3 {[%clk 0:01:14]}  Qc3 {[%clk 0:00:59]} 29. Rfb1 {[%clk 0:00:48]}  Ra1 {[%clk 0:00:52]} 30. Rxa1 {[%clk 0:00:31]}  Rxa1+ {[%clk 0:00:49]} 31. Kh2 {[%clk 0:00:32]}  Ra3 {[%clk 0:00:43]} 32. Qf2 {[%clk 0:00:22]}  Rxb3 {[%clk 0:00:39]} 33. Rxb3 {[%clk 0:00:17]}  Qxb3 {[%clk 0:00:39]} 34. e5 {[%clk 0:00:17]}  Qxc4 {[%clk 0:00:34]} 35. exd6 {[%clk 0:00:16]}  Qxd5 {[%clk 0:00:34]} 36. d7 {[%clk 0:00:16]}  Qxd7 {[%clk 0:00:30]} 37. Qxc5 {[%clk 0:00:16]}  f6 {[%clk 0:00:29]} 38. Qxb4 {[%clk 0:00:16]}  Qf5 {[%clk 0:00:28]} 39. Qc4+ {[%clk 0:00:15]}  Kg7 {[%clk 0:00:27]} 40. Qc7+ {[%clk 0:00:16]}  Kh6 {[%clk 0:00:26]} 41. Qd8 {[%clk 0:00:15]}  Qg6 {[%clk 0:00:24]} 42. Qe7 {[%clk 0:00:14]}  f5 {[%clk 0:00:23]} 43. Qe5 {[%clk 0:00:14]}  Kh5 {[%clk 0:00:21]} 44. g3 {[%clk 0:00:13]}  fxg3+ {[%clk 0:00:20]} 45. Kxg3 {[%clk 0:00:13]}  f4+ {[%clk 0:00:21]} 46. Kg2 {[%clk 0:00:13]}  Qc2+ {[%clk 0:00:21]} 47. Kg1 {[%clk 0:00:14]}  Qd1+ {[%clk 0:00:21]} 48. Kg2 {[%clk 0:00:13]}  Qc2+ {[%clk 0:00:20]} 49. Kg1 {[%clk 0:00:13]}  Qd2 {[%clk 0:00:19]} 50. Qe8+ {[%clk 0:00:12]}  Kh4 {[%clk 0:00:16]} 51. Qe6 {[%clk 0:00:12]}  Qe3+ {[%clk 0:00:15]} 52. Qxe3 {[%clk 0:00:09]}  fxe3 {[%clk 0:00:15]} 53. Kf1 {[%clk 0:00:09]}  Kg3 {[%clk 0:00:15]} 54. Ke2 {[%clk 0:00:09]}  Kxh3 {[%clk 0:00:15]} 55. Kxe3 {[%clk 0:00:10]}  Kg3 {[%clk 0:00:15]} 56. Ke4 {[%clk 0:00:10]}  h5 {[%clk 0:00:15]} 57. Ke3 {[%clk 0:00:11]}  h4 {[%clk 0:00:14]} 0-1


[Site "https://www.chess.com"]

[Event "Titled Tuesday Blitz August 09 Early 2022"]
[White "Dev, Shah"]
[Black "Vasquez Schroeder, Rodrigo"]
[WhiteFideId "35019058"]
[BlackFideId "3400042"]
[WhiteElo "2048"]
[BlackElo "2567"]
[Result "0-1"]
[Round "05"]
[TimeControl "180+1"]
[Date "2022.08.09"]
[WhiteClock "0:00:26"]
[BlackClock "0:01:22"]

1. d4 {[%clk 0:03:00]}  d5 {[%clk 0:02:56]} 2. c4 {[%clk 0:03:00]}  c6 {[%clk 0:02:56]} 3. Nf3 {[%clk 0:03:00]}  Nf6 {[%clk 0:02:56]} 4. g3 {[%clk 0:03:00]}  dxc4 {[%clk 0:02:49]} 5. Bg2 {[%clk 0:03:00]}  g6 {[%clk 0:02:49]} 6. O-O {[%clk 0:02:58]}  Bg7 {[%clk 0:02:48]} 7. a4 {[%clk 0:02:59]}  Ne4 {[%clk 0:02:41]} 8. Qc2 {[%clk 0:02:59]}  Nd6 {[%clk 0:02:39]} 9. e4 {[%clk 0:02:59]}  O-O {[%clk 0:02:35]} 10. Na3 {[%clk 0:02:52]}  Na6 {[%clk 0:02:33]} 11. Nxc4 {[%clk 0:02:49]}  Nb4 {[%clk 0:02:31]} 12. Qc3 {[%clk 0:02:47]}  a5 {[%clk 0:02:27]} 13. Nxd6 {[%clk 0:02:44]}  exd6 {[%clk 0:02:25]} 14. Bf4 {[%clk 0:02:39]}  Re8 {[%clk 0:02:24]} 15. Rfe1 {[%clk 0:02:39]}  Bg4 {[%clk 0:02:22]} 16. h3 {[%clk 0:02:34]}  Bxf3 {[%clk 0:02:21]} 17. Bxf3 {[%clk 0:02:35]}  Qb6 {[%clk 0:02:21]} 18. Rad1 {[%clk 0:02:31]}  Rad8 {[%clk 0:02:22]} 19. Qd2 {[%clk 0:02:26]}  c5 {[%clk 0:02:15]} 20. Be3 {[%clk 0:02:21]}  cxd4 {[%clk 0:02:11]} 21. Bxd4 {[%clk 0:02:21]}  Bxd4 {[%clk 0:02:10]} 22. Qxd4 {[%clk 0:02:17]}  Qxd4 {[%clk 0:02:11]} 23. Rxd4 {[%clk 0:02:18]}  Nc2 {[%clk 0:02:11]} 24. Red1 {[%clk 0:02:18]}  Nxd4 {[%clk 0:02:11]} 25. Rxd4 {[%clk 0:02:19]}  Kf8 {[%clk 0:02:05]} 26. b4 {[%clk 0:02:13]}  Re5 {[%clk 0:02:04]} 27. bxa5 {[%clk 0:01:53]}  Rxa5 {[%clk 0:02:03]} 28. Rb4 {[%clk 0:01:53]}  Rd7 {[%clk 0:02:01]} 29. Be2 {[%clk 0:01:50]}  d5 {[%clk 0:01:59]} 30. Bb5 {[%clk 0:01:49]}  Rd8 {[%clk 0:01:54]} 31. Rd4 {[%clk 0:01:49]}  Ke7 {[%clk 0:01:51]} 32. exd5 {[%clk 0:01:47]}  Kd6 {[%clk 0:01:51]} 33. Rh4 {[%clk 0:01:21]}  h5 {[%clk 0:01:49]} 34. Rf4 {[%clk 0:01:21]}  f5 {[%clk 0:01:48]} 35. g4 {[%clk 0:01:17]}  Ke5 {[%clk 0:01:46]} 36. Rb4 {[%clk 0:01:13]}  hxg4 {[%clk 0:01:43]} 37. hxg4 {[%clk 0:01:11]}  Rxd5 {[%clk 0:01:43]} 38. gxf5 {[%clk 0:01:09]}  gxf5 {[%clk 0:01:44]} 39. Be8 {[%clk 0:01:05]}  Ra7 {[%clk 0:01:41]} 40. Bh5 {[%clk 0:01:04]}  Rd4 {[%clk 0:01:37]} 41. Rb5+ {[%clk 0:00:58]}  Kf6 {[%clk 0:01:37]} 42. a5 {[%clk 0:00:51]}  Ra4 {[%clk 0:01:36]} 43. Bf3 {[%clk 0:00:50]}  R4xa5 {[%clk 0:01:34]} 44. Rxa5 {[%clk 0:00:50]}  Rxa5 {[%clk 0:01:32]} 45. Bxb7 {[%clk 0:00:51]}  Ke5 {[%clk 0:01:32]} 46. Kg2 {[%clk 0:00:42]}  Kf4 {[%clk 0:01:31]} 47. Bf3 {[%clk 0:00:40]}  Ra7 {[%clk 0:01:30]} 48. Bd5 {[%clk 0:00:37]}  Rd7 {[%clk 0:01:30]} 49. Bc6 {[%clk 0:00:37]}  Rd6 {[%clk 0:01:31]} 50. Bb7 {[%clk 0:00:37]}  Rg6+ {[%clk 0:01:31]} 51. Kf1 {[%clk 0:00:36]}  Rb6 {[%clk 0:01:32]} 52. Ba8 {[%clk 0:00:35]}  Ke5 {[%clk 0:01:32]} 53. Kg2 {[%clk 0:00:35]}  Ra6 {[%clk 0:01:32]} 54. Bb7 {[%clk 0:00:35]}  Ra7 {[%clk 0:01:32]} 55. Bc6 {[%clk 0:00:35]}  Rg7+ {[%clk 0:01:33]} 56. Kf3 {[%clk 0:00:33]}  Rh7 {[%clk 0:01:31]} 57. Ba8 {[%clk 0:00:30]}  Ra7 {[%clk 0:01:30]} 58. Bc6 {[%clk 0:00:29]}  Ra6 {[%clk 0:01:29]} 59. Bb7 {[%clk 0:00:29]}  Rb6 {[%clk 0:01:30]} 60. Ba8 {[%clk 0:00:29]}  Rb8 {[%clk 0:01:28]} 61. Bc6 {[%clk 0:00:29]}  Kd6 {[%clk 0:01:28]} 62. Ba4 {[%clk 0:00:27]}  Rb4 {[%clk 0:01:28]} 63. Be8 {[%clk 0:00:27]}  Rc4 {[%clk 0:01:26]} 64. Kg2 {[%clk 0:00:27]}  Ke5 {[%clk 0:01:25]} 65. Bh5 {[%clk 0:00:26]}  Rc3 {[%clk 0:01:23]} 66. Bf3 {[%clk 0:00:26]}  Rc7 {[%clk 0:01:22]} 67. Ba8 {[%clk 0:00:25]}  Kf4 {[%clk 0:01:22]} 68. Bf3 {[%clk 0:00:26]}  Rg7+ {[%clk 0:01:22]} 0-1


[Site "https://www.chess.com"]

[Event "Titled Tuesday Blitz August 09 Early 2022"]
[White "Drygalov, Sergey"]
[Black "Salem, A.R. Saleh"]
[WhiteFideId "24171743"]
[BlackFideId "9301348"]
[WhiteElo "2523"]
[BlackElo "2674"]
[Result "0-1"]
[Round "05"]
[TimeControl "180+1"]
[Date "2022.08.09"]
[WhiteClock "0:00:21"]
[BlackClock "0:00:15"]

1. d4 {[%clk 0:03:00]}  d5 {[%clk 0:02:59]} 2. c4 {[%clk 0:03:01]}  e6 {[%clk 0:03:00]} 3. Nf3 {[%clk 0:03:01]}  Nf6 {[%clk 0:03:01]} 4. Nc3 {[%clk 0:03:01]}  Nbd7 {[%clk 0:03:00]} 5. Bf4 {[%clk 0:02:59]}  dxc4 {[%clk 0:03:00]} 6. e3 {[%clk 0:02:56]}  b5 {[%clk 0:03:00]} 7. Nxb5 {[%clk 0:02:55]}  Bb4+ {[%clk 0:03:00]} 8. Nc3 {[%clk 0:02:55]}  Nd5 {[%clk 0:03:00]} 9. a3 {[%clk 0:02:55]}  Nxc3 {[%clk 0:02:59]} 10. Qd2 {[%clk 0:02:55]}  Ba5 {[%clk 0:02:54]} 11. bxc3 {[%clk 0:02:20]}  Ba6 {[%clk 0:02:54]} 12. Be2 {[%clk 0:02:16]}  O-O {[%clk 0:02:52]} 13. O-O {[%clk 0:02:12]}  Nf6 {[%clk 0:02:50]} 14. Ne5 {[%clk 0:02:03]}  c5 {[%clk 0:02:05]} 15. Bxc4 {[%clk 0:01:56]}  Bxc4 {[%clk 0:01:57]} 16. Nxc4 {[%clk 0:01:55]}  Nd5 {[%clk 0:01:50]} 17. Rac1 {[%clk 0:01:41]}  Nxf4 {[%clk 0:01:44]} 18. exf4 {[%clk 0:01:41]}  Rc8 {[%clk 0:01:38]} 19. Rfd1 {[%clk 0:01:29]}  cxd4 {[%clk 0:01:26]} 20. Qxd4 {[%clk 0:01:27]}  Qc7 {[%clk 0:01:18]} 21. Nxa5 {[%clk 0:01:24]}  Qxa5 {[%clk 0:01:19]} 22. Qb4 {[%clk 0:01:24]}  Qf5 {[%clk 0:01:08]} 23. Rd7 {[%clk 0:01:18]}  a5 {[%clk 0:01:05]} 24. Qd4 {[%clk 0:01:15]}  h6 {[%clk 0:01:00]} 25. h3 {[%clk 0:01:15]}  Rc5 {[%clk 0:00:46]} 26. g4 {[%clk 0:01:06]}  e5 {[%clk 0:00:46]} 27. Qxc5 {[%clk 0:00:50]}  Qxd7 {[%clk 0:00:46]} 28. Qxe5 {[%clk 0:00:50]}  Re8 {[%clk 0:00:37]} 29. Qd4 {[%clk 0:00:50]}  Qc6 {[%clk 0:00:34]} 30. f5 {[%clk 0:00:44]}  Qf3 {[%clk 0:00:33]} 31. c4 {[%clk 0:00:30]}  Qxh3 {[%clk 0:00:33]} 32. Qf4 {[%clk 0:00:19]}  Qxa3 {[%clk 0:00:25]} 33. c5 {[%clk 0:00:19]}  Re4 {[%clk 0:00:21]} 34. Qxe4 {[%clk 0:00:19]}  Qxc1+ {[%clk 0:00:21]} 35. Kg2 {[%clk 0:00:19]}  Qxc5 {[%clk 0:00:21]} 36. Qe8+ {[%clk 0:00:20]}  Kh7 {[%clk 0:00:22]} 37. Qxf7 {[%clk 0:00:20]}  Qc6+ {[%clk 0:00:21]} 38. Kg3 {[%clk 0:00:21]}  a4 {[%clk 0:00:20]} 39. f4 {[%clk 0:00:21]}  Qc3+ {[%clk 0:00:15]} 40. Kg2 {[%clk 0:00:22]}  Qb2+ {[%clk 0:00:15]} 41. Kg3 {[%clk 0:00:21]}  Qb3+ {[%clk 0:00:15]} 0-1


[Site "https://www.chess.com"]

[Event "Titled Tuesday Blitz August 09 Early 2022"]
[White "Ezat, Mohamed"]
[Black "Zhigalko, Sergei"]
[WhiteFideId "10600906"]
[BlackFideId "13502956"]
[WhiteElo "2386"]
[BlackElo "2662"]
[Result "0-1"]
[Round "05"]
[TimeControl "180+1"]
[Date "2022.08.09"]
[WhiteClock "0:01:05"]
[BlackClock "0:00:18"]

1. d4 {[%clk 0:03:00]}  Nf6 {[%clk 0:02:59]} 2. c4 {[%clk 0:03:00]}  e6 {[%clk 0:03:00]} 3. Nc3 {[%clk 0:03:00]}  Bb4 {[%clk 0:03:00]} 4. e3 {[%clk 0:02:56]}  O-O {[%clk 0:03:00]} 5. a3 {[%clk 0:02:56]}  Bxc3+ {[%clk 0:02:55]} 6. bxc3 {[%clk 0:02:56]}  c5 {[%clk 0:02:48]} 7. Bd3 {[%clk 0:02:57]}  Nc6 {[%clk 0:02:46]} 8. Ne2 {[%clk 0:02:56]}  b6 {[%clk 0:02:37]} 9. O-O {[%clk 0:02:55]}  Ba6 {[%clk 0:02:38]} 10. e4 {[%clk 0:02:55]}  Ne8 {[%clk 0:02:37]} 11. Ng3 {[%clk 0:02:54]}  cxd4 {[%clk 0:02:34]} 12. cxd4 {[%clk 0:02:55]}  Nxd4 {[%clk 0:02:33]} 13. f4 {[%clk 0:02:55]}  f6 {[%clk 0:02:31]} 14. Bb2 {[%clk 0:02:39]}  Nc6 {[%clk 0:02:27]} 15. Qg4 {[%clk 0:02:34]}  Qe7 {[%clk 0:02:21]} 16. Kh1 {[%clk 0:02:33]}  Na5 {[%clk 0:02:16]} 17. Rac1 {[%clk 0:02:32]}  Rc8 {[%clk 0:02:16]} 18. e5 {[%clk 0:02:24]}  f5 {[%clk 0:02:05]} 19. Nxf5 {[%clk 0:02:20]}  exf5 {[%clk 0:02:01]} 20. Bxf5 {[%clk 0:02:21]}  Rxc4 {[%clk 0:01:32]} 21. Bxd7 {[%clk 0:02:14]}  Nc7 {[%clk 0:01:10]} 22. e6 {[%clk 0:01:55]}  Nd5 {[%clk 0:00:57]} 23. Rcd1 {[%clk 0:01:39]}  Ne3 {[%clk 0:00:42]} 24. Qe2 {[%clk 0:01:25]}  Rcxf4 {[%clk 0:00:22]} 25. Rxf4 {[%clk 0:01:10]}  Bxe2 {[%clk 0:00:21]} 26. Rf7 {[%clk 0:01:10]}  Rxf7 {[%clk 0:00:20]} 27. exf7+ {[%clk 0:01:09]}  Qxf7 {[%clk 0:00:20]} 28. Rc1 {[%clk 0:01:05]}  Qxd7 {[%clk 0:00:18]} 0-1


[Site "https://www.chess.com"]

[Event "Titled Tuesday Blitz August 09 Early 2022"]
[White "Fernandez Siles, Luis"]
[Black "Degardin, Sylvain"]
[WhiteFideId "2209420"]
[BlackFideId "20623070"]
[WhiteElo "2211"]
[BlackElo "2146"]
[Result "1-0"]
[Round "05"]
[TimeControl "180+1"]
[Date "2022.08.09"]
[WhiteClock "0:00:05"]
[BlackClock "0:00:04"]

1. e4 {[%clk 0:03:00]}  Nc6 {[%clk 0:02:59]} 2. Nf3 {[%clk 0:03:00]}  d6 {[%clk 0:02:59]} 3. d4 {[%clk 0:03:00]}  Nf6 {[%clk 0:02:59]} 4. Nc3 {[%clk 0:03:00]}  g6 {[%clk 0:02:59]} 5. d5 {[%clk 0:02:57]}  Nb8 {[%clk 0:02:58]} 6. h3 {[%clk 0:02:56]}  Bg7 {[%clk 0:02:58]} 7. Be2 {[%clk 0:02:53]}  O-O {[%clk 0:02:57]} 8. O-O {[%clk 0:02:54]}  c6 {[%clk 0:02:56]} 9. dxc6 {[%clk 0:02:52]}  Nxc6 {[%clk 0:02:55]} 10. Be3 {[%clk 0:02:47]}  a6 {[%clk 0:02:41]} 11. a4 {[%clk 0:02:45]}  Bd7 {[%clk 0:02:28]} 12. Qd2 {[%clk 0:02:43]}  Rc8 {[%clk 0:02:27]} 13. Bh6 {[%clk 0:02:42]}  Na5 {[%clk 0:02:22]} 14. Bxg7 {[%clk 0:02:37]}  Kxg7 {[%clk 0:02:23]} 15. Rfd1 {[%clk 0:02:18]}  Qc7 {[%clk 0:02:20]} 16. Qd4 {[%clk 0:01:49]}  Nc4 {[%clk 0:02:06]} 17. Nd5 {[%clk 0:01:37]}  e5 {[%clk 0:01:50]} 18. Qxc4 {[%clk 0:01:26]}  Qxc4 {[%clk 0:01:48]} 19. Bxc4 {[%clk 0:01:26]}  Rxc4 {[%clk 0:01:44]} 20. Nxf6 {[%clk 0:01:25]}  Kxf6 {[%clk 0:01:42]} 21. Rxd6+ {[%clk 0:01:25]}  Be6 {[%clk 0:01:38]} 22. c3 {[%clk 0:01:12]}  Rxe4 {[%clk 0:01:36]} 23. Rb6 {[%clk 0:01:10]}  Rb8 {[%clk 0:01:28]} 24. a5 {[%clk 0:00:55]}  Ke7 {[%clk 0:01:24]} 25. Rd1 {[%clk 0:00:48]}  h6 {[%clk 0:00:48]} 26. Re1 {[%clk 0:00:32]}  Rxe1+ {[%clk 0:00:46]} 27. Nxe1 {[%clk 0:00:33]}  Bd5 {[%clk 0:00:40]} 28. Nd3 {[%clk 0:00:31]}  f6 {[%clk 0:00:37]} 29. Nb4 {[%clk 0:00:26]}  Be6 {[%clk 0:00:28]} 30. Nxa6 {[%clk 0:00:24]}  Ra8 {[%clk 0:00:20]} 31. Rxe6+ {[%clk 0:00:19]}  Kf7 {[%clk 0:00:19]} 32. Nc5 {[%clk 0:00:17]}  Rxa5 {[%clk 0:00:18]} 33. Rb6 {[%clk 0:00:08]}  Rxc5 {[%clk 0:00:16]} 34. Rxb7+ {[%clk 0:00:08]}  Ke6 {[%clk 0:00:17]} 35. f3 {[%clk 0:00:09]}  Rd5 {[%clk 0:00:15]} 36. Kf2 {[%clk 0:00:08]}  Rd2+ {[%clk 0:00:14]} 37. Ke3 {[%clk 0:00:08]}  Rxg2 {[%clk 0:00:14]} 38. b4 {[%clk 0:00:08]}  Rc2 {[%clk 0:00:13]} 39. Kd3 {[%clk 0:00:08]}  Rf2 {[%clk 0:00:13]} 40. b5 {[%clk 0:00:08]}  Rxf3+ {[%clk 0:00:13]} 41. Kc4 {[%clk 0:00:08]}  Kd6 {[%clk 0:00:12]} 42. Rb6+ {[%clk 0:00:08]}  Kc7 {[%clk 0:00:12]} 43. Rc6+ {[%clk 0:00:09]}  Kb7 {[%clk 0:00:12]} 44. Re6 {[%clk 0:00:09]}  g5 {[%clk 0:00:12]} 45. Kb4 {[%clk 0:00:09]}  h5 {[%clk 0:00:12]} 46. c4 {[%clk 0:00:09]}  g4 {[%clk 0:00:12]} 47. c5 {[%clk 0:00:10]}  gxh3 {[%clk 0:00:12]} 48. Re7+ {[%clk 0:00:11]}  Kc8 {[%clk 0:00:12]} 49. c6 {[%clk 0:00:08]}  h2 {[%clk 0:00:12]} 50. b6 {[%clk 0:00:08]}  Kd8 {[%clk 0:00:12]} 51. Rd7+ {[%clk 0:00:07]}  Ke8 {[%clk 0:00:12]} 52. b7 {[%clk 0:00:07]}  Rf4+ {[%clk 0:00:10]} 53. Kc5 {[%clk 0:00:05]}  Rc4+ {[%clk 0:00:03]} 54. Kxc4 {[%clk 0:00:05]}  h1=Q {[%clk 0:00:04]} 55. b8=Q# {[%clk 0:00:05]} 1-0


[Site "https://www.chess.com"]